[Event "Late-Titled-Tuesday-Blitz-January-23-2024"]
[Site "Chess.com"]
[Date "2024.01.23"]
[Round "6"]
[White "wild3000"]
[Black "ArmanGhevondyanchess"]
[Result "1/2-1/2"]
[WhiteElo "2457"]
[BlackElo "2584"]
[TimeControl "180+1"]
[EndTime "15:01:25 PST"]
[Termination "Game drawn by agreement"]

1. d4 {[%clk 0:03:00.9]} 1... d5 {[%clk 0:02:57.9]} 2. Nf3 {[%clk 0:03:00.9]}
2... e6 {[%clk 0:02:55.4]} 3. e3 {[%clk 0:03:00.1]} 3... Nf6 {[%clk 0:02:55.9]}
4. Be2 {[%clk 0:02:59.9]} 4... Be7 {[%clk 0:02:56.8]} 5. O-O {[%clk 0:03:00.4]}
5... O-O {[%clk 0:02:57.7]} 6. b3 {[%clk 0:03:00.7]} 6... c5 {[%clk 0:02:58.1]}
7. Bb2 {[%clk 0:03:00.9]} 7... Nc6 {[%clk 0:02:58.5]} 8. c4 {[%clk 0:02:59.9]}
8... cxd4 {[%clk 0:02:58.3]} 9. Nxd4 {[%clk 0:02:59.9]} 9... Nxd4 {[%clk
0:02:58.1]} 10. Qxd4 {[%clk 0:02:59.7]} 10... dxc4 {[%clk 0:02:57.8]} 11. Qxd8
{[%clk 0:02:59.2]} 11... Rxd8 {[%clk 0:02:58.7]} 12. Bxc4 {[%clk 0:02:59]} 12...
Bd7 {[%clk 0:02:58.6]} 13. Nc3 {[%clk 0:02:56.4]} 13... Bc6 {[%clk 0:02:55.8]}
14. Rfd1 {[%clk 0:02:56.1]} 14... Ne4 {[%clk 0:02:49.7]} 15. Nxe4 {[%clk
0:02:54.5]} 15... Bxe4 {[%clk 0:02:50.6]} 16. Rac1 {[%clk 0:02:41.4]} 16...
Rxd1+ {[%clk 0:02:42.9]} 17. Rxd1 {[%clk 0:02:41.2]} 17... Rd8 {[%clk
0:02:43.6]} 18. Rxd8+ {[%clk 0:02:40.5]} 18... Bxd8 {[%clk 0:02:44.5]} 19. Bd4
{[%clk 0:02:38.3]} 19... a6 {[%clk 0:02:39.5]} 20. f3 {[%clk 0:02:37.1]} 20...
Bc6 {[%clk 0:02:37.6]} 21. a4 {[%clk 0:02:36.1]} 21... Bf6 {[%clk 0:02:37.1]}
22. Bb6 {[%clk 0:02:29.9]} 22... Kf8 {[%clk 0:02:36.5]} 23. Kf2 {[%clk
0:02:28.9]} 23... Ke7 {[%clk 0:02:36.7]} 24. Bc5+ {[%clk 0:02:29]} 24... Kd7
{[%clk 0:02:37.1]} 25. a5 {[%clk 0:02:18.3]} 25... Bc3 {[%clk 0:02:31.6]} 26. b4
{[%clk 0:02:18.2]} 26... Be5 {[%clk 0:02:18.4]} 27. h4 {[%clk 0:02:12.4]} 27...
Bd6 {[%clk 0:02:12.2]} 28. Bxd6 {[%clk 0:02:06.6]} 28... Kxd6 {[%clk 0:02:13.1]}
29. e4 {[%clk 0:02:03.8]} 29... f6 {[%clk 0:01:59.6]} 30. Ke3 {[%clk 0:02:00.2]}
30... e5 {[%clk 0:01:58.6]} 31. g3 {[%clk 0:01:56.9]} 1/2-1/2

[Event "Late-Titled-Tuesday-Blitz-January-23-2024"]
[Site "Chess.com"]
[Date "2024.01.23"]
[Round "6"]
[White "pr1105"]
[Black "MokshanovAlexey"]
[Result "0-1"]
[WhiteElo "2322"]
[BlackElo "2645"]
[TimeControl "180+1"]
[EndTime "15:01:56 PST"]
[Termination "MokshanovAlexey won by resignation"]

1. e4 {[%clk 0:03:00.9]} 1... e6 {[%clk 0:02:59.9]} 2. d4 {[%clk 0:03:01]} 2...
d5 {[%clk 0:03:00]} 3. Nc3 {[%clk 0:03:01.7]} 3... Nf6 {[%clk 0:03:00.3]} 4. e5
{[%clk 0:03:02.3]} 4... Nfd7 {[%clk 0:03:00.3]} 5. f4 {[%clk 0:03:03.2]} 5... c5
{[%clk 0:03:00.9]} 6. Nf3 {[%clk 0:03:04.1]} 6... Nc6 {[%clk 0:03:01.5]} 7. Be3
{[%clk 0:03:04.6]} 7... Be7 {[%clk 0:03:02.1]} 8. Qd2 {[%clk 0:03:04.7]} 8...
O-O {[%clk 0:03:02.7]} 9. dxc5 {[%clk 0:03:05]} 9... Bxc5 {[%clk 0:03:02.6]} 10.
O-O-O {[%clk 0:03:05.6]} 10... Qa5 {[%clk 0:03:02.3]} 11. Kb1 {[%clk 0:03:03.4]}
11... Rb8 {[%clk 0:03:02.2]} 12. Nd4 {[%clk 0:02:57]} 12... Nxd4 {[%clk
0:02:47.7]} 13. Bxd4 {[%clk 0:02:49.5]} 13... Bxd4 {[%clk 0:02:47.9]} 14. Qxd4
{[%clk 0:02:50.4]} 14... b5 {[%clk 0:02:48.5]} 15. Bd3 {[%clk 0:02:42.4]} 15...
b4 {[%clk 0:02:46.6]} 16. Ne2 {[%clk 0:02:42.6]} 16... Ba6 {[%clk 0:02:41.8]}
17. h4 {[%clk 0:02:36.4]} 17... Bxd3 {[%clk 0:02:41.4]} 18. Rxd3 {[%clk
0:02:36.1]} 18... Nc5 {[%clk 0:02:38.5]} 19. Re3 {[%clk 0:02:26.9]} 19... Ne4
{[%clk 0:02:36.4]} 20. h5 {[%clk 0:01:58.7]} 20... h6 {[%clk 0:02:30.8]} 21. g4
{[%clk 0:01:55.3]} 21... Rfc8 {[%clk 0:02:30.4]} 22. b3 {[%clk 0:01:53.2]} 22...
Nc3+ {[%clk 0:01:39.2]} 23. Nxc3 {[%clk 0:01:42.6]} 23... bxc3 {[%clk
0:01:39.4]} 24. Rhh3 {[%clk 0:01:37]} 24... Rc4 {[%clk 0:01:36.8]} 25. Qd3
{[%clk 0:01:26.2]} 25... Qa3 {[%clk 0:01:32.2]} 0-1

[Event "Late-Titled-Tuesday-Blitz-January-23-2024"]
[Site "Chess.com"]
[Date "2024.01.23"]
[Round "6"]
[White "AsaHoffmann"]
[Black "FREZZY23"]
[Result "1-0"]
[WhiteElo "2381"]
[BlackElo "2497"]
[TimeControl "180+1"]
[EndTime "15:02:15 PST"]
[Termination "AsaHoffmann won by resignation"]

1. d4 {[%clk 0:02:57.7]} 1... Nf6 {[%clk 0:03:00.1]} 2. Bg5 {[%clk 0:02:53.5]}
2... d5 {[%clk 0:02:57.7]} 3. Nd2 {[%clk 0:02:53.1]} 3... g6 {[%clk 0:02:56.6]}
4. e3 {[%clk 0:02:52.2]} 4... Bg7 {[%clk 0:02:56.6]} 5. Bd3 {[%clk 0:02:52.1]}
5... c5 {[%clk 0:02:56.1]} 6. c3 {[%clk 0:02:52]} 6... Nc6 {[%clk 0:02:56.1]} 7.
f4 {[%clk 0:02:52]} 7... Ng4 {[%clk 0:02:53.8]} 8. Qe2 {[%clk 0:02:48.4]} 8...
Qb6 {[%clk 0:02:52.3]} 9. Rb1 {[%clk 0:02:42.7]} 9... f6 {[%clk 0:02:46.1]} 10.
Bh4 {[%clk 0:02:40.9]} 10... e5 {[%clk 0:02:45]} 11. h3 {[%clk 0:02:34.4]} 11...
Nh6 {[%clk 0:02:43.3]} 12. fxe5 {[%clk 0:02:28.9]} 12... fxe5 {[%clk 0:02:42.7]}
13. e4 {[%clk 0:02:13.5]} 13... dxe4 {[%clk 0:02:33.5]} 14. Nxe4 {[%clk
0:02:07]} 14... cxd4 {[%clk 0:02:32.2]} 15. Nd6+ {[%clk 0:02:03.4]} 15... Kd7
{[%clk 0:02:31.2]} 16. Nc4 {[%clk 0:01:58.7]} 16... Qc5 {[%clk 0:02:27.7]} 17.
Nf3 {[%clk 0:01:55.7]} 17... Re8 {[%clk 0:02:24.2]} 18. O-O {[%clk 0:01:47.1]}
18... b5 {[%clk 0:02:23.4]} 19. Ncd2 {[%clk 0:01:43.2]} 19... dxc3+ {[%clk
0:02:11.9]} 20. Bf2 {[%clk 0:01:41.9]} 20... Nd4 {[%clk 0:02:12.5]} 21. Nxd4
{[%clk 0:01:26.9]} 21... exd4 {[%clk 0:02:12.5]} 22. Ne4 {[%clk 0:01:26.9]}
22... Qe7 {[%clk 0:01:59.1]} 23. Bxb5+ {[%clk 0:01:25.7]} 23... Kd8 {[%clk
0:01:59]} 24. Bxe8 {[%clk 0:01:24.4]} 24... Qxe8 {[%clk 0:01:59.4]} 25. bxc3
{[%clk 0:01:19.1]} 25... dxc3 {[%clk 0:01:51.2]} 26. Rfd1+ {[%clk 0:01:13.2]}
26... Bd7 {[%clk 0:01:50.7]} 27. Qd3 {[%clk 0:01:07.6]} 27... Rc8 {[%clk
0:01:45.9]} 28. Rb7 {[%clk 0:01:04.5]} 28... c2 {[%clk 0:01:43.5]} 29. Rxd7+
{[%clk 0:01:02.7]} 1-0

[Event "Late-Titled-Tuesday-Blitz-January-23-2024"]
[Site "Chess.com"]
[Date "2024.01.23"]
[Round "6"]
[White "Noki102"]
[Black "ChessSwole"]
[Result "0-1"]
[WhiteElo "2442"]
[BlackElo "2614"]
[TimeControl "180+1"]
[EndTime "15:02:18 PST"]
[Termination "ChessSwole won by resignation"]

1. Nf3 {[%clk 0:03:00.9]} 1... d5 {[%clk 0:02:59]} 2. g3 {[%clk 0:03:01.6]} 2...
Nf6 {[%clk 0:02:59.4]} 3. Bg2 {[%clk 0:03:02]} 3... g6 {[%clk 0:02:58.2]} 4. O-O
{[%clk 0:03:02.4]} 4... Bg7 {[%clk 0:02:58.8]} 5. b3 {[%clk 0:02:59.1]} 5... Ne4
{[%clk 0:02:57.8]} 6. d4 {[%clk 0:02:58.4]} 6... O-O {[%clk 0:02:56.5]} 7. Bb2
{[%clk 0:02:58.1]} 7... c5 {[%clk 0:02:52.7]} 8. Nbd2 {[%clk 0:02:56.2]} 8...
Nc6 {[%clk 0:02:53]} 9. e3 {[%clk 0:02:50.7]} 9... Qa5 {[%clk 0:02:46.3]} 10.
Nxe4 {[%clk 0:02:41.4]} 10... dxe4 {[%clk 0:02:47.2]} 11. Ne5 {[%clk 0:02:41.3]}
11... Nxe5 {[%clk 0:02:40.6]} 12. dxe5 {[%clk 0:02:39.7]} 12... Rd8 {[%clk
0:02:40.4]} 13. Qe1 {[%clk 0:02:29.6]} 13... Qc7 {[%clk 0:02:20.4]} 14. Qc3
{[%clk 0:01:58]} 14... Rd5 {[%clk 0:02:19]} 15. Bxe4 {[%clk 0:01:43.3]} 15...
Bxe5 {[%clk 0:02:18.7]} 16. Qc4 {[%clk 0:01:32.1]} 16... Rd8 {[%clk 0:02:09.4]}
17. Bxe5 {[%clk 0:01:26.3]} 17... Qxe5 {[%clk 0:02:10.3]} 18. Rad1 {[%clk
0:01:25.7]} 18... Be6 {[%clk 0:02:09.7]} 19. Qa4 {[%clk 0:01:04.4]} 19... Rxd1
{[%clk 0:01:58.1]} 20. Rxd1 {[%clk 0:00:52.8]} 20... b5 {[%clk 0:01:58.1]} 21.
f4 {[%clk 0:00:51.8]} 21... Qh5 {[%clk 0:01:56.2]} 0-1

[Event "Late-Titled-Tuesday-Blitz-January-23-2024"]
[Site "Chess.com"]
[Date "2024.01.23"]
[Round "6"]
[White "karinachess1"]
[Black "Rdeux42"]
[Result "1-0"]
[WhiteElo "2617"]
[BlackElo "2444"]
[TimeControl "180+1"]
[EndTime "15:02:24 PST"]
[Termination "karinachess1 won by resignation"]

1. d4 {[%clk 0:03:00.9]} 1... Nf6 {[%clk 0:02:58.8]} 2. c4 {[%clk 0:03:01.3]}
2... e6 {[%clk 0:02:58.9]} 3. Nc3 {[%clk 0:03:01.6]} 3... Bb4 {[%clk 0:02:58.2]}
4. a3 {[%clk 0:03:02.1]} 4... Bxc3+ {[%clk 0:02:57.8]} 5. bxc3 {[%clk 0:03:03]}
5... O-O {[%clk 0:02:57.4]} 6. e3 {[%clk 0:03:02.2]} 6... c5 {[%clk 0:02:56.3]}
7. Bd3 {[%clk 0:03:02.3]} 7... Nc6 {[%clk 0:02:55.7]} 8. Ne2 {[%clk 0:03:02.5]}
8... d6 {[%clk 0:02:52.2]} 9. O-O {[%clk 0:03:02.4]} 9... e5 {[%clk 0:02:52.7]}
10. d5 {[%clk 0:02:55.3]} 10... Na5 {[%clk 0:02:51.4]} 11. e4 {[%clk 0:02:55.9]}
11... h6 {[%clk 0:02:51.2]} 12. Ng3 {[%clk 0:02:56.2]} 12... b6 {[%clk
0:02:49.1]} 13. f4 {[%clk 0:02:52.2]} 13... exf4 {[%clk 0:02:49.2]} 14. Bxf4
{[%clk 0:02:53.1]} 14... Ba6 {[%clk 0:02:41.6]} 15. e5 {[%clk 0:02:26.8]} 15...
dxe5 {[%clk 0:02:31.2]} 16. Bxe5 {[%clk 0:02:27.7]} 16... Nd7 {[%clk 0:02:26.6]}
17. Bxg7 {[%clk 0:01:59.4]} 17... Kxg7 {[%clk 0:02:25.6]} 18. Qg4+ {[%clk
0:01:53.2]} 18... Qg5 {[%clk 0:02:15]} 19. Qxd7 {[%clk 0:01:43.6]} 19... Bc8
{[%clk 0:02:13.3]} 20. Qd6 {[%clk 0:00:59.7]} 20... Rd8 {[%clk 0:02:08]} 21.
Nh5+ {[%clk 0:00:42.6]} 21... Kg8 {[%clk 0:02:01.5]} 22. Nf6+ {[%clk 0:00:41.3]}
22... Kg7 {[%clk 0:02:02]} 23. Qxd8 {[%clk 0:00:40.4]} 23... Bh3 {[%clk
0:01:59.4]} 24. Ne8+ {[%clk 0:00:35.6]} 24... Kh8 {[%clk 0:01:56.7]} 25. Qxg5
{[%clk 0:00:34.7]} 25... hxg5 {[%clk 0:01:55.5]} 26. gxh3 {[%clk 0:00:34.7]} 1-0

[Event "Late-Titled-Tuesday-Blitz-January-23-2024"]
[Site "Chess.com"]
[Date "2024.01.23"]
[Round "6"]
[White "akanga001"]
[Black "LUISMIGUELOV"]
[Result "0-1"]
[WhiteElo "1990"]
[BlackElo "2177"]
[TimeControl "180+1"]
[EndTime "15:02:36 PST"]
[Termination "LUISMIGUELOV won by resignation"]

1. d4 {[%clk 0:03:00.9]} 1... Nf6 {[%clk 0:02:54.8]} 2. c4 {[%clk 0:02:59.9]}
2... e5 {[%clk 0:02:54.1]} 3. g3 {[%clk 0:02:58.2]} 3... exd4 {[%clk 0:02:51.9]}
4. Qxd4 {[%clk 0:02:56.8]} 4... Nc6 {[%clk 0:02:50.7]} 5. Qd1 {[%clk 0:02:45.1]}
5... Bb4+ {[%clk 0:02:49.2]} 6. Bd2 {[%clk 0:02:43.2]} 6... O-O {[%clk 0:02:48]}
7. Bg2 {[%clk 0:02:43.2]} 7... Re8 {[%clk 0:02:46.6]} 8. Nf3 {[%clk 0:02:41.7]}
8... d6 {[%clk 0:02:46.2]} 9. O-O {[%clk 0:02:39.9]} 9... Bg4 {[%clk 0:02:45]}
10. Bg5 {[%clk 0:02:35.7]} 10... h6 {[%clk 0:02:43.1]} 11. Be3 {[%clk
0:02:27.1]} 11... a5 {[%clk 0:02:38.3]} 12. h3 {[%clk 0:02:27.1]} 12... Bxf3
{[%clk 0:02:32.4]} 13. Bxf3 {[%clk 0:02:28]} 13... Ne5 {[%clk 0:02:31.1]} 14.
Bxb7 {[%clk 0:02:24.3]} 14... Nxc4 {[%clk 0:02:28.7]} 15. Bd4 {[%clk 0:02:17.1]}
15... Rb8 {[%clk 0:02:19.9]} 16. Bg2 {[%clk 0:02:15.9]} 16... Qe7 {[%clk
0:02:15.8]} 17. e3 {[%clk 0:02:13.7]} 17... c5 {[%clk 0:02:04.2]} 18. a3 {[%clk
0:02:13.2]} 18... cxd4 {[%clk 0:01:55.6]} 19. axb4 {[%clk 0:02:12.8]} 19... dxe3
{[%clk 0:01:55.4]} 20. Qc2 {[%clk 0:02:05.9]} 20... exf2+ {[%clk 0:01:48.7]} 21.
Rxf2 {[%clk 0:02:02.4]} 21... Ne3 {[%clk 0:01:49]} 22. Qd2 {[%clk 0:01:56.2]}
22... Nxg2 {[%clk 0:01:46.4]} 23. Kxg2 {[%clk 0:01:55.4]} 23... Rxb4 {[%clk
0:01:44.5]} 24. Nc3 {[%clk 0:01:53.4]} 24... Ne4 {[%clk 0:01:43.7]} 25. Nxe4
{[%clk 0:01:52.5]} 25... Rxe4 {[%clk 0:01:42.8]} 26. Kh2 {[%clk 0:01:53.4]}
26... Re2 {[%clk 0:01:42]} 27. Rxe2 {[%clk 0:01:53]} 27... Qxe2+ {[%clk
0:01:41.7]} 28. Qxe2 {[%clk 0:01:53.4]} 28... Rxe2+ {[%clk 0:01:41.4]} 29. Kg1
{[%clk 0:01:54.1]} 29... Rxb2 {[%clk 0:01:40.7]} 30. Rxa5 {[%clk 0:01:54.2]}
30... g6 {[%clk 0:01:37.8]} 31. Rd5 {[%clk 0:01:52]} 31... Rb6 {[%clk
0:01:35.9]} 32. Kg2 {[%clk 0:01:52.3]} 32... Kg7 {[%clk 0:01:35.7]} 33. Kf3
{[%clk 0:01:52.9]} 33... h5 {[%clk 0:01:34.9]} 34. g4 {[%clk 0:01:51.7]} 34...
hxg4+ {[%clk 0:01:33.9]} 35. hxg4 {[%clk 0:01:52.4]} 35... f6 {[%clk 0:01:33.9]}
36. Kf4 {[%clk 0:01:51.9]} 36... Kf7 {[%clk 0:01:32.7]} 37. g5 {[%clk
0:01:50.4]} 37... f5 {[%clk 0:01:27.6]} 38. Ra5 {[%clk 0:01:45]} 38... Rb4+
{[%clk 0:01:24.2]} 39. Kf3 {[%clk 0:01:44.1]} 39... Rg4 {[%clk 0:01:21]} 40.
Ra7+ {[%clk 0:01:44.7]} 40... Ke6 {[%clk 0:01:20.2]} 0-1

[Event "Late-Titled-Tuesday-Blitz-January-23-2024"]
[Site "Chess.com"]
[Date "2024.01.23"]
[Round "6"]
[White "toninhojit"]
[Black "Nor1lsk"]
[Result "1-0"]
[WhiteElo "2504"]
[BlackElo "2690"]
[TimeControl "180+1"]
[EndTime "15:03:02 PST"]
[Termination "toninhojit won by resignation"]

1. d4 {[%clk 0:03:00.9]} 1... g6 {[%clk 0:02:59.5]} 2. e4 {[%clk 0:02:58.9]}
2... Bg7 {[%clk 0:02:59.5]} 3. Nc3 {[%clk 0:02:59.5]} 3... d5 {[%clk 0:02:58.8]}
4. exd5 {[%clk 0:02:57.8]} 4... Nf6 {[%clk 0:02:58.5]} 5. Bc4 {[%clk 0:02:54.2]}
5... Nbd7 {[%clk 0:02:58.3]} 6. Nf3 {[%clk 0:02:45.5]} 6... Nb6 {[%clk
0:02:57.7]} 7. Bb3 {[%clk 0:02:45.8]} 7... Nbxd5 {[%clk 0:02:55.8]} 8. h3 {[%clk
0:02:45.6]} 8... Nxc3 {[%clk 0:02:54.8]} 9. bxc3 {[%clk 0:02:44.9]} 9... O-O
{[%clk 0:02:54.5]} 10. O-O {[%clk 0:02:44.9]} 10... c6 {[%clk 0:02:54.7]} 11.
Re1 {[%clk 0:02:43.9]} 11... Bf5 {[%clk 0:02:54.6]} 12. Ne5 {[%clk 0:02:37.5]}
12... Be4 {[%clk 0:02:52.2]} 13. Qe2 {[%clk 0:02:20.9]} 13... Bd5 {[%clk
0:02:51.4]} 14. c4 {[%clk 0:02:18]} 14... Be6 {[%clk 0:02:51.3]} 15. Bb2 {[%clk
0:02:18.5]} 15... Re8 {[%clk 0:02:40.3]} 16. a4 {[%clk 0:02:14.5]} 16... Qc7
{[%clk 0:02:39.4]} 17. a5 {[%clk 0:02:12.4]} 17... Rad8 {[%clk 0:02:39.5]} 18.
Bc3 {[%clk 0:02:03.7]} 18... Nd7 {[%clk 0:02:38.9]} 19. Nf3 {[%clk 0:01:48.6]}
19... Nf8 {[%clk 0:02:35.2]} 20. a6 {[%clk 0:01:41.3]} 20... b6 {[%clk
0:02:34.5]} 21. Ng5 {[%clk 0:01:30.2]} 21... c5 {[%clk 0:02:30]} 22. Nxe6 {[%clk
0:01:08.2]} 22... Nxe6 {[%clk 0:02:28.9]} 23. d5 {[%clk 0:01:01.2]} 23... Bxc3
{[%clk 0:02:27.3]} 24. dxe6 {[%clk 0:01:01.3]} 24... f6 {[%clk 0:02:27.5]} 25.
Ba4 {[%clk 0:01:00.4]} 25... Rf8 {[%clk 0:02:17.6]} 26. Bd7 {[%clk 0:01:00.5]}
26... Bxa1 {[%clk 0:02:16.8]} 27. Rxa1 {[%clk 0:01:01.4]} 27... Rxd7 {[%clk
0:02:15.9]} 28. exd7 {[%clk 0:01:00.7]} 28... Qxd7 {[%clk 0:02:16.8]} 29. Rd1
{[%clk 0:01:00.7]} 29... Qc7 {[%clk 0:01:42.6]} 30. Qe6+ {[%clk 0:00:59.3]}
30... Rf7 {[%clk 0:01:40.2]} 31. Rd7 {[%clk 0:00:55.7]} 31... Qc8 {[%clk
0:01:36.3]} 32. Qd5 {[%clk 0:00:55.5]} 32... Qxa6 {[%clk 0:01:34.7]} 33. Rxe7
{[%clk 0:00:50]} 1-0

[Event "Late-Titled-Tuesday-Blitz-January-23-2024"]
[Site "Chess.com"]
[Date "2024.01.23"]
[Round "6"]
[White "JaackCamel"]
[Black "Felix-Rose"]
[Result "0-1"]
[WhiteElo "2168"]
[BlackElo "2327"]
[TimeControl "180+1"]
[EndTime "15:03:05 PST"]
[Termination "Felix-Rose won on time"]

1. d4 {[%clk 0:03:00.9]} 1... d5 {[%clk 0:02:58.8]} 2. c4 {[%clk 0:03:00.6]}
2... e6 {[%clk 0:02:58.8]} 3. Nc3 {[%clk 0:03:00.3]} 3... Nf6 {[%clk 0:02:58.9]}
4. cxd5 {[%clk 0:02:59.9]} 4... exd5 {[%clk 0:02:59.1]} 5. Bg5 {[%clk
0:02:59.3]} 5... Nbd7 {[%clk 0:02:57.9]} 6. e3 {[%clk 0:02:59.2]} 6... Bb4
{[%clk 0:02:57.3]} 7. Bd3 {[%clk 0:02:53.5]} 7... h6 {[%clk 0:02:53.7]} 8. Bh4
{[%clk 0:02:47.5]} 8... g5 {[%clk 0:02:52.9]} 9. Bg3 {[%clk 0:02:47.1]} 9... c5
{[%clk 0:02:53.5]} 10. dxc5 {[%clk 0:02:33.6]} 10... Qa5 {[%clk 0:02:53.3]} 11.
Ne2 {[%clk 0:02:20]} 11... Nh5 {[%clk 0:02:36.2]} 12. Bd6 {[%clk 0:02:10.1]}
12... Nxc5 {[%clk 0:02:35]} 13. O-O {[%clk 0:01:57.5]} 13... Nxd3 {[%clk
0:02:33.6]} 14. Qxd3 {[%clk 0:01:16.3]} 14... Bxd6 {[%clk 0:02:32.8]} 15. Nb5
{[%clk 0:00:51.5]} 15... Be7 {[%clk 0:02:10.3]} 16. Rac1 {[%clk 0:00:31.7]}
16... O-O {[%clk 0:02:04.2]} 17. Qxd5 {[%clk 0:00:26]} 17... Nf6 {[%clk
0:01:50.5]} 18. Qe5 {[%clk 0:00:20.4]} 18... Be6 {[%clk 0:01:47.8]} 19. a4
{[%clk 0:00:09]} 19... a6 {[%clk 0:01:46.6]} 20. Qc7 {[%clk 0:00:03.5]} 20...
axb5 {[%clk 0:01:41.3]} 0-1

[Event "Late-Titled-Tuesday-Blitz-January-23-2024"]
[Site "Chess.com"]
[Date "2024.01.23"]
[Round "6"]
[White "RodokininEV"]
[Black "Balla_Tamas"]
[Result "1-0"]
[WhiteElo "2610"]
[BlackElo "2454"]
[TimeControl "180+1"]
[EndTime "15:03:07 PST"]
[Termination "RodokininEV won by resignation"]

1. e4 {[%clk 0:03:00.9]} 1... c5 {[%clk 0:03:00.1]} 2. Nf3 {[%clk 0:03:01.1]}
2... Nc6 {[%clk 0:03:00.6]} 3. b4 {[%clk 0:02:59.3]} 3... cxb4 {[%clk
0:02:58.5]} 4. a3 {[%clk 0:02:59.9]} 4... Nf6 {[%clk 0:02:49.9]} 5. e5 {[%clk
0:02:57.4]} 5... Nd5 {[%clk 0:02:48.2]} 6. axb4 {[%clk 0:02:58.1]} 6... d6
{[%clk 0:02:44.7]} 7. exd6 {[%clk 0:02:48.6]} 7... Qxd6 {[%clk 0:02:43.1]} 8. b5
{[%clk 0:02:49.5]} 8... Ne5 {[%clk 0:02:41.7]} 9. Bb2 {[%clk 0:02:47.5]} 9...
Nxf3+ {[%clk 0:02:30.3]} 10. Qxf3 {[%clk 0:02:48.4]} 10... e6 {[%clk 0:01:56.2]}
11. Na3 {[%clk 0:02:45.8]} 11... Bd7 {[%clk 0:01:36.3]} 12. Nc4 {[%clk
0:02:44.8]} 12... Qc7 {[%clk 0:01:33]} 13. Be5 {[%clk 0:02:44.1]} 13... Qc5
{[%clk 0:01:26.7]} 14. Bd3 {[%clk 0:02:43.5]} 14... f6 {[%clk 0:01:26.7]} 15.
Qh5+ {[%clk 0:02:32.2]} 15... Kd8 {[%clk 0:01:21.7]} 16. Na5 {[%clk 0:02:29.1]}
16... Qb6 {[%clk 0:01:16.2]} 17. Bg3 {[%clk 0:02:23.3]} 17... Bxb5 {[%clk
0:01:13.9]} 18. Bxb5 {[%clk 0:02:20.4]} 18... Qxb5 {[%clk 0:01:13.2]} 19. c4
{[%clk 0:02:20.9]} 19... Qb2 {[%clk 0:01:11.7]} 20. O-O {[%clk 0:02:18.4]} 20...
Nb6 {[%clk 0:01:07.3]} 21. Qf7 {[%clk 0:02:12.6]} 21... e5 {[%clk 0:00:51.8]}
22. d4 {[%clk 0:02:00.9]} 22... Bb4 {[%clk 0:00:43.6]} 23. dxe5 {[%clk
0:01:58.4]} 23... Bxa5 {[%clk 0:00:43.3]} 24. Rfd1+ {[%clk 0:01:49.1]} 24... Bd2
{[%clk 0:00:39.3]} 25. Bf4 {[%clk 0:01:36.8]} 25... Kc8 {[%clk 0:00:32.3]} 26.
Qe6+ {[%clk 0:01:30.2]} 26... Kc7 {[%clk 0:00:27.4]} 27. exf6+ {[%clk
0:01:29.1]} 1-0

[Event "Late-Titled-Tuesday-Blitz-January-23-2024"]
[Site "Chess.com"]
[Date "2024.01.23"]
[Round "6"]
[White "HajiyevKanan"]
[Black "GMAkobianSTL"]
[Result "1-0"]
[WhiteElo "2579"]
[BlackElo "2746"]
[TimeControl "180+1"]
[EndTime "15:03:13 PST"]
[Termination "HajiyevKanan won by resignation"]

1. d4 {[%clk 0:03:00.9]} 1... e6 {[%clk 0:02:58.9]} 2. Nf3 {[%clk 0:03:01.8]}
2... f5 {[%clk 0:02:58.4]} 3. g3 {[%clk 0:03:01.5]} 3... Nf6 {[%clk 0:02:58.4]}
4. Bg2 {[%clk 0:03:02.3]} 4... d5 {[%clk 0:02:57.8]} 5. O-O {[%clk 0:03:01.5]}
5... Bd6 {[%clk 0:02:57.9]} 6. c4 {[%clk 0:03:02]} 6... c6 {[%clk 0:02:57.5]} 7.
Bf4 {[%clk 0:03:02.1]} 7... Bxf4 {[%clk 0:02:57.1]} 8. gxf4 {[%clk 0:03:03]}
8... O-O {[%clk 0:02:57.3]} 9. Ne5 {[%clk 0:03:01]} 9... Nbd7 {[%clk 0:02:56.5]}
10. e3 {[%clk 0:03:00.1]} 10... Nxe5 {[%clk 0:02:56.4]} 11. fxe5 {[%clk
0:02:58.9]} 11... Ne4 {[%clk 0:02:56.3]} 12. Nd2 {[%clk 0:02:44.4]} 12... Bd7
{[%clk 0:02:55]} 13. Nxe4 {[%clk 0:02:34]} 13... fxe4 {[%clk 0:02:54.4]} 14. Qg4
{[%clk 0:02:16.2]} 14... Qe7 {[%clk 0:02:52.5]} 15. c5 {[%clk 0:02:14.7]} 15...
Rf5 {[%clk 0:02:51.4]} 16. f4 {[%clk 0:02:10.6]} 16... exf3 {[%clk 0:02:47.9]}
17. Rxf3 {[%clk 0:02:10.6]} 17... Rxf3 {[%clk 0:02:44.6]} 18. Bxf3 {[%clk
0:02:10.3]} 18... Be8 {[%clk 0:02:42.9]} 19. Rf1 {[%clk 0:02:07.1]} 19... Bg6
{[%clk 0:02:42.3]} 20. h4 {[%clk 0:01:53.2]} 20... Rf8 {[%clk 0:02:40]} 21. Bg2
{[%clk 0:01:45.9]} 21... Rxf1+ {[%clk 0:02:34.3]} 22. Bxf1 {[%clk 0:01:46.8]}
22... Bf5 {[%clk 0:02:33.1]} 23. Qg5 {[%clk 0:01:45.9]} 23... Qxg5+ {[%clk
0:02:32.4]} 24. hxg5 {[%clk 0:01:46.8]} 24... Kf7 {[%clk 0:02:32.7]} 25. Kf2
{[%clk 0:01:42.4]} 25... Kg6 {[%clk 0:02:32.5]} 26. b4 {[%clk 0:01:43]} 26...
Kxg5 {[%clk 0:02:31.2]} 27. Kg3 {[%clk 0:01:42.6]} 27... h5 {[%clk 0:02:30.4]}
28. a4 {[%clk 0:01:41.6]} 28... h4+ {[%clk 0:02:30]} 29. Kf2 {[%clk 0:01:39]}
29... Kg4 {[%clk 0:02:17.1]} 30. b5 {[%clk 0:01:34.2]} 30... h3 {[%clk
0:02:12.8]} 31. a5 {[%clk 0:01:31.1]} 31... Be4 {[%clk 0:02:04.7]} 32. a6 {[%clk
0:01:16.9]} 32... bxa6 {[%clk 0:01:52.8]} 33. bxc6 {[%clk 0:01:15.6]} 33... h2
{[%clk 0:01:52]} 34. Bg2 {[%clk 0:01:13.7]} 1-0